fUSD/lending_fUSD_20250530
["ID","MTS","AMOUNT","RATE_DAILY","PERIOD"]
[363192031,1748619115209,-2783.11,0.00024109,2]
[363192032,1748619115219,-676.42,0.00024109,2]
[363192033,1748619115230,-734.54,0.00024109,2]
[363192034,1748619115241,-1663.09,0.00024109,2]
[363192035,1748619115251,-6908.64,0.00024109,2]
[363192036,1748619115261,-450.49,0.00024109,2]
[363192037,1748619115272,-1803.22,0.00024109,2]
[363192038,1748619115282,-420.0,0.00024109,2]
[363192039,1748619115295,-807.7,0.00024109,2]
[363192040,1748619115305,-3069.28,0.00024109,2]
[363192041,1748619115316,-466.47,0.00024109,2]
[363192042,1748619115326,-420.0,0.00024109,2]
[363192043,1748619115337,-420.0,0.00024109,2]
[363192044,1748619115347,-1271.23,0.00024109,2]
[363192045,1748619115357,-1013.92,0.00024109,2]
[363192046,1748619115368,-1000.0,0.00024134,2]
[363192047,1748619115378,-2500.0,0.00024164,2]
[363192048,1748619115389,-2361.17880087,0.00024164,2]
[363192049,1748619115400,-214.0,0.00024164,7]
[363192050,1748619115410,-150.0,0.00024225,2]
[363192051,1748619115421,-980.858598,0.00024225,2]
[363192052,1748619115431,-1078.45113,0.00024225,2]
[363192053,1748619115442,-4049.5936825,0.00024245,10]
[363192054,1748619115452,-1215.52664,0.0002428,2]
[363192055,1748619115463,-989.27223219,0.00024304,2]
[363192056,1748619115473,-1023.68454568,0.00024333,2]
[363192057,1748619115483,-300.0,0.00024382,2]
[363192058,1748619115493,-300.0,0.00024382,2]
[363192059,1748619115503,-420.0,0.00024383,2]
[363192060,1748619115513,-420.0,0.00024383,2]
[363192061,1748619115524,-579.42,0.00024383,2]
[363192062,1748619115534,-441.8,0.00024383,2]
[363192063,1748619115547,-591.36,0.00024383,2]
[363192064,1748619115556,-468.16,0.00024383,2]
[363192065,1748619115566,-451.1,0.00024383,2]
[363192066,1748619115576,-420.0,0.00024383,2]
[363192067,1748619115587,-420.0,0.00024383,2]
[363192068,1748619115597,-420.3,0.00024383,2]
[363192069,1748619115608,-420.0,0.00024383,2]
[363192070,1748619115618,-853.41,0.00024383,2]
[363192071,1748619115628,-420.0,0.00024383,2]
[363192072,1748619115638,-420.0,0.00024383,2]
[363192073,1748619115648,-420.0,0.00024383,2]
[363192074,1748619115658,-525.07,0.00024383,2]
[363192075,1748619115668,-502.76,0.00024383,2]
[363192076,1748619115679,-1167.56,0.00024383,2]
[363192077,1748619115689,-769.78,0.00024383,2]
[363192078,1748619115699,-499.23,0.00024383,2]
[363192079,1748619115710,-420.0,0.00024383,2]
[363192080,1748619115720,-531.83,0.00024383,2]
[363192081,1748619115730,-420.0,0.00024383,2]
[363192082,1748619115740,-479.53,0.00024383,2]
[363192083,1748619115750,-753.24,0.00024383,2]
[363192084,1748619115760,-265.73,0.00024383,2]
[363192085,1748619115769,-476.72,0.00024383,2]
[363192086,1748619115779,-420.0,0.00024383,2]
[363192087,1748619115794,-571.1,0.00024383,2]
[363192088,1748619115808,-420.0,0.00024383,2]
[363192089,1748619115818,-908.97,0.00024383,2]
[363192090,1748619115828,-420.0,0.00024383,2]
[363192091,1748619115838,-420.0,0.00024383,2]
[363192092,1748619115849,-420.0,0.00024383,2]
[363192093,1748619115859,-420.0,0.00024383,2]
[363192094,1748619115868,-432.46,0.00024383,2]
[363192095,1748619115878,-420.0,0.00024383,2]
[363192096,1748619115889,-420.0,0.00024383,2]
[363192097,1748619115899,-420.0,0.00024383,2]
[363192098,1748619115909,-420.0,0.00024383,2]
[363192099,1748619116145,-420.0,0.00024383,2]
[363192100,1748619116184,-2098.6,0.00024383,2]
[363192101,1748619116194,-420.0,0.00024383,2]
[363192102,1748619116204,-420.0,0.00024383,2]
[363192103,1748619116213,-490.07,0.00024383,2]
[363192104,1748619116223,-770.69,0.00024383,2]
[363192105,1748619116232,-420.0,0.00024383,2]
[363192106,1748619116242,-890.15,0.00024383,2]
[363192107,1748619116251,-420.0,0.00024383,2]
[363192108,1748619116261,-420.86,0.00024383,2]
[363192109,1748619116270,-426.87,0.00024383,2]
[363192110,1748619116280,-420.0,0.00024383,2]
[363192111,1748619116291,-366.46,0.00024383,2]
[363192112,1748619116301,-424.91,0.00024383,2]
[363192113,1748619116311,-429.06,0.00024383,2]
[363192114,1748619116321,-420.0,0.00024383,2]
[363192115,1748619116331,-420.0,0.00024383,2]
[363192116,1748619116341,-758.53,0.00024383,2]
[363192117,1748619116350,-530.2795717,0.00024383,2]
[363192118,1748619116361,-420.0,0.00024383,2]
[363192119,1748619116371,-772.94,0.00024383,2]
[363192120,1748619116380,-420.0,0.00024383,2]
[363192121,1748619116390,-420.0,0.00024383,2]
[363192122,1748619116400,-427.85,0.00024383,2]
[363192123,1748619116409,-420.0,0.00024383,2]
[363192124,1748619116419,-420.0,0.00024383,2]
[363192125,1748619116428,-456.87,0.00024383,2]
[363192126,1748619116438,-406.17597258,0.00024383,2]
[363192127,1748619116448,-420.0,0.00024383,2]
[363192128,1748619116458,-420.0,0.00024383,2]
[363192129,1748619116467,-420.0,0.00024383,2]
[363192130,1748619116477,-420.0,0.00024383,2]
[363192131,1748619116487,-420.0,0.00024383,2]
[363192132,1748619116497,-420.0,0.00024383,2]
[363192133,1748619116507,-420.0,0.00024383,2]
[363192134,1748619116517,-420.0,0.00024383,2]
[363192135,1748619116527,-420.0,0.00024383,2]
[363192136,1748619116537,-777.89,0.00024383,2]
[363192137,1748619116546,-1819.65,0.00024383,2]
[363192138,1748619116556,-863.65,0.00024383,2]
[363192139,1748619116567,-420.0,0.00024383,2]
[363192140,1748619116576,-1212.65,0.00024383,2]
[363192141,1748619116587,-1175.81,0.00024383,2]
[363192142,1748619116596,-553.05,0.00024383,2]
[363192143,1748619116606,-796.08,0.00024383,2]
[363192144,1748619116617,-420.0,0.00024383,2]
[363192145,1748619116627,-523.03,0.00024383,2]
[363192146,1748619116638,-501.69,0.00024383,2]
[363192147,1748619116647,-1811.35,0.00024383,2]
[363192148,1748619116657,-420.0,0.00024383,2]
[363192149,1748619116666,-420.0,0.00024383,2]
[363192150,1748619116676,-822.17,0.00024383,2]
[363192151,1748619116685,-496.62,0.00024383,2]
[363192152,1748619116695,-641.0,0.00024383,2]
[363192153,1748619116705,-847.29,0.00024383,2]
[363192154,1748619116715,-420.0,0.00024383,2]
[363192155,1748619116725,-420.0,0.00024383,2]
[363192156,1748619116735,-1102.55,0.00024383,2]
[363192157,1748619116746,-443.43,0.00024383,2]
[363192158,1748619116756,-420.0,0.00024383,2]
[363192159,1748619116767,-443.13,0.00024383,2]
[363192160,1748619116776,-751.91,0.00024383,2]
[363192161,1748619116788,-420.0,0.00024383,2]
[363192162,1748619116798,-420.0,0.00024383,2]
[363192163,1748619116810,-420.0,0.00024383,2]
[363192164,1748619116820,-518.42,0.00024383,2]
[363192165,1748619116830,-1199.0,0.00024383,2]
[363192166,1748619116840,-420.0,0.00024383,2]
[363192167,1748619116850,-841.83,0.00024383,2]
[363192168,1748619116860,-1711.43,0.00024383,2]
[363192169,1748619116870,-508.53,0.00024383,2]
[363192170,1748619116879,-948.67,0.00024383,2]
[363192171,1748619116890,-420.0,0.00024383,2]
[363192172,1748619116899,-610.77,0.00024383,2]
[363192173,1748619116909,-160.20587512,0.00024383,2]
[363192174,1748619116919,-2171.03,0.00024383,2]
[363192175,1748619116930,-420.0,0.00024383,2]
[363192176,1748619116939,-945.97,0.00024383,2]
[363192177,1748619116950,-572.48,0.00024383,2]
[363192178,1748619116961,-1319.71,0.00024383,2]
[363192179,1748619116972,-456.76,0.00024383,2]
[363192180,1748619116982,-1456.24,0.00024383,2]
[363192181,1748619116991,-636.09,0.00024383,2]
[363192182,1748619117000,-853.5,0.00024383,2]
[363192183,1748619117009,-743.92,0.00024383,2]
[363192184,1748619117019,-1258.56,0.00024383,2]
[363192185,1748619117029,-652.14,0.00024383,2]
[363192186,1748619117040,-183.550623,0.00024383,2]
[363192187,1748619117050,-1419.49,0.00024383,2]
[363192188,1748619117059,-569.93,0.00024383,2]
[363192189,1748619117068,-584.74,0.00024383,2]
[363192190,1748619117077,-755.51,0.00024383,2]
[363192191,1748619117087,-582.04,0.00024383,2]
[363192192,1748619117096,-420.0,0.00024383,2]
[363192193,1748619117105,-420.0,0.00024383,2]
[363192194,1748619117115,-420.0,0.00024383,2]
[363192195,1748619117125,-781.6,0.00024383,2]
[363192196,1748619117135,-1041.01,0.00024383,2]
[363192197,1748619117145,-1369.52,0.00024383,2]
[363192198,1748619117154,-474.65,0.00024383,2]
[363192199,1748619117163,-463.6,0.00024383,2]
[363192200,1748619117172,-1379.11,0.00024383,2]
[363192201,1748619117182,-420.0,0.00024383,2]
[363192202,1748619117192,-420.0,0.00024383,2]
[363192203,1748619117203,-666.7,0.00024383,2]
[363192204,1748619117215,-741.8,0.00024383,2]
[363192205,1748619117225,-1319.43,0.00024383,2]
[363192206,1748619117234,-576.82,0.00024383,2]
[363192207,1748619117245,-693.89,0.00024383,2]
[363192208,1748619117257,-561.65,0.00024383,2]
[363192209,1748619117267,-1160.92,0.00024383,2]
[363192210,1748619117277,-472.93,0.00024383,2]
[363192211,1748619117288,-1207.82,0.00024383,2]
[363192212,1748619117298,-1166.17,0.00024383,2]
[363192213,1748619117308,-1168.26,0.00024383,2]
[363192214,1748619117318,-420.0,0.00024383,2]
[363192215,1748619117330,-420.0,0.00024383,2]
[363192216,1748619117340,-466.98,0.00024383,2]
[363192217,1748619117349,-723.56,0.00024383,2]
[363192218,1748619117359,-784.43,0.00024383,2]
[363192219,1748619117369,-1364.89,0.00024383,2]
[363192220,1748619117378,-801.75,0.00024383,2]
[363192221,1748619117388,-604.61,0.00024383,2]
[363192222,1748619117398,-635.16,0.00024383,2]
[363192223,1748619117408,-587.51,0.00024383,2]
[363192224,1748619117417,-1137.25,0.00024383,2]
[363192225,1748619117426,-786.55,0.00024383,2]
[363192226,1748619117436,-862.94,0.00024383,2]
[363192227,1748619117446,-420.0,0.00024383,2]
[363192228,1748619117455,-523.95,0.00024383,2]
[363192229,1748619117465,-1160.03,0.00024383,2]
[363192230,1748619117474,-673.65,0.00024383,2]
[363192231,1748619117483,-931.25,0.00024383,2]
[363192232,1748619117493,-420.0,0.00024383,2]
[363192233,1748619117502,-552.42,0.00024383,2]
[363192234,1748619117511,-459.7,0.00024383,2]
[363192235,1748619117521,-1724.07,0.00024383,2]
[363192236,1748619117530,-420.0,0.00024383,2]
[363192237,1748619117541,-600.48,0.00024383,2]
[363192238,1748619117550,-726.29,0.00024383,2]
[363192239,1748619117559,-472.86,0.00024383,2]
[363192240,1748619117569,-420.0,0.00024383,2]
[363192241,1748619117579,-1073.36,0.00024383,2]
[363192242,1748619117588,-832.22,0.00024383,2]
[363192243,1748619117598,-576.09,0.00024383,2]
[363192244,1748619117607,-1371.43,0.00024383,2]
[363192245,1748619117617,-1079.44,0.00024383,2]
[363192246,1748619117627,-538.33,0.00024383,2]
[363192247,1748619117637,-971.8,0.00024383,2]
[363192248,1748619117646,-590.55,0.00024383,2]
[363192249,1748619117655,-550.23,0.00024383,2]
[363192250,1748619117664,-476.32,0.00024383,2]
[363192251,1748619117673,-523.75,0.00024383,2]
[363192252,1748619117683,-420.0,0.00024383,2]
[363192253,1748619117692,-2381.24,0.00024383,2]
[363192254,1748619117700,-420.0,0.00024383,2]
[363192255,1748619117709,-1073.24,0.00024383,2]
[363192256,1748619117719,-659.08,0.00024383,2]
[363192257,1748619117728,-420.0,0.00024383,2]
[363192258,1748619117738,-535.46,0.00024383,2]
[363192259,1748619117748,-420.0,0.00024383,2]
[363192260,1748619117757,-420.0,0.00024383,2]
[363192261,1748619117768,-569.05,0.00024383,2]
[363192262,1748619117777,-420.0,0.00024383,2]
[363192263,1748619117788,-808.94,0.00024383,2]
[363192264,1748619117799,-1940.81,0.00024383,2]
[363192265,1748619117809,-463.09,0.00024383,2]
[363192266,1748619117818,-627.54,0.00024383,2]
[363192267,1748619117828,-420.0,0.00024383,2]
[363192268,1748619117838,-1123.75,0.00024383,2]
[363192269,1748619117847,-539.2,0.00024383,2]
[363192270,1748619117859,-487.89,0.00024383,2]
[363192271,1748619117869,-420.0,0.00024383,2]
[363192272,1748619117879,-420.0,0.00024383,2]
[363192273,1748619117888,-1124.04,0.00024383,2]
[363192274,1748619117897,-553.55,0.00024383,2]
[363192275,1748619117907,-1448.39,0.00024383,2]
[363192276,1748619117917,-1053.3,0.00024383,2]
[363192277,1748619117927,-584.13,0.00024383,2]
[363192278,1748619117938,-1192.82,0.00024383,2]
[363192279,1748619117948,-527.00473185,0.00024383,2]
[363192280,1748619117959,-613.48,0.00024383,2]
[363192281,1748619117968,-420.0,0.00024383,2]
[363192282,1748619117978,-491.19,0.00024383,2]
[363192283,1748619117987,-466.46,0.00024383,2]
[363192284,1748619117997,-561.99,0.00024383,2]
[363192285,1748619118006,-1678.06,0.00024383,2]
[363192286,1748619118015,-420.0,0.00024383,2]
[363192287,1748619118025,-420.0,0.00024383,2]
[363192288,1748619118036,-1400.08,0.00024383,2]
[363192289,1748619118045,-600.46,0.00024383,2]
[363192290,1748619118054,-626.74,0.00024383,2]
[363192291,1748619118064,-729.19,0.00024383,2]
[363192292,1748619118071,-420.0,0.00024383,2]
[363192293,1748619118080,-849.19,0.00024383,2]
[363192294,1748619118090,-1178.79,0.00024383,2]
[363192295,1748619118099,-1833.03,0.00024383,2]
[363192296,1748619118109,-558.24,0.00024383,2]
[363192297,1748619118118,-633.87,0.00024383,2]
[363192298,1748619118127,-420.0,0.00024383,2]
[363192299,1748619118136,-465.46,0.00024383,2]
[363192300,1748619118146,-1085.24,0.00024383,2]
[363192301,1748619118155,-420.0,0.00024383,2]
[363192302,1748619118164,-3634.58,0.00024383,2]
[363192303,1748619118173,-2016.38,0.00024383,2]
[363192304,1748619118183,-609.8,0.00024383,2]
[363192305,1748619118192,-420.0,0.00024383,2]
[363192306,1748619118202,-1168.36,0.00024383,2]
[363192307,1748619118212,-5361.86,0.00024383,2]
[363192308,1748619118222,-188.67623674,0.00024383,2]
[363192309,1748619118232,-2127.16,0.00024383,2]
[363192310,1748619118243,-1484.06,0.00024383,2]
[363192311,1748619118252,-420.0,0.00024383,2]
[363192312,1748619118261,-1109.67,0.00024383,2]
[363192313,1748619118271,-614.8,0.00024383,2]
[363192314,1748619118280,-575.02,0.00024383,2]
[363192315,1748619118292,-562.44,0.00024383,2]
[363192316,1748619118302,-674.8,0.00024383,2]
[363192317,1748619118311,-1824.08,0.00024383,2]
[363192318,1748619118322,-420.0,0.00024383,2]
[363192319,1748619118331,-420.0,0.00024383,2]
[363192320,1748619118343,-904.81,0.00024383,2]
[363192321,1748619118353,-490.58,0.00024383,2]
[363192322,1748619118362,-7075.98,0.00024383,2]
[363192323,1748619118372,-1096.87,0.00024383,2]
[363192324,1748619118382,-723.21,0.00024383,2]
[363192325,1748619118392,-420.0,0.00024383,2]
[363192326,1748619118402,-1561.66,0.00024383,2]
[363192327,1748619118411,-420.0,0.00024383,2]
[363192328,1748619118421,-9812.16,0.00024383,2]
[363192329,1748619118431,-420.0,0.00024383,2]
[363192330,1748619118440,-1075.43,0.00024383,2]
[363192331,1748619118451,-622.82,0.00024383,2]
[363192332,1748619118461,-1429.73,0.00024383,2]
[363192333,1748619118471,-915.42,0.00024383,2]
[363192334,1748619118480,-11863.32,0.00024383,2]
[363192335,1748619118491,-1946.94,0.00024383,2]
[363192336,1748619118500,-420.0,0.00024383,2]
[363192337,1748619118510,-594.91,0.00024383,2]
[363192338,1748619118522,-797.36,0.00024383,2]
[363192339,1748619118531,-1167.97,0.00024383,2]
[363192340,1748619118544,-5682.0,0.00024383,2]
[363192341,1748619118554,-524.77,0.00024383,2]
[363192342,1748619118564,-1550.77,0.00024383,2]
[363192343,1748619118574,-448.51184997,0.00024383,2]
[363192344,1748619118589,-974.63,0.00024383,2]
[363192345,1748619118599,-655.87,0.00024383,2]
[363192346,1748619118609,-600.66,0.00024383,2]
[363192347,1748619118619,-702.81,0.00024383,2]
[363192348,1748619118629,-1024.75,0.00024383,2]
[363192349,1748619118639,-609.69,0.00024383,2]
[363192350,1748619118648,-420.0,0.00024383,2]
[363192351,1748619118658,-1076.37,0.00024383,2]
[363192352,1748619118668,-464.14,0.00024383,2]
[363192353,1748619118678,-420.0,0.00024383,2]
[363192354,1748619118688,-1708.68,0.00024383,2]
[363192355,1748619118699,-476.72,0.00024383,2]
[363192356,1748619118709,-726.29,0.00024383,2]
[363192357,1748619118719,-1013.34,0.00024383,2]
[363192358,1748619118729,-850.36,0.00024383,2]
[363192359,1748619118739,-9498.11,0.00024383,2]
[363192360,1748619118749,-829.87,0.00024383,2]
[363192361,1748619118759,-997.73,0.00024383,2]
[363192362,1748619118769,-1568.21,0.00024383,2]
[363192363,1748619118779,-717.62,0.00024383,2]
[363192364,1748619118791,-862.79,0.00024383,2]
[363192365,1748619118803,-2137.81,0.00024383,2]
[363192366,1748619118813,-657.91,0.00024383,2]
[363192367,1748619118826,-985.32,0.00024383,2]
[363192368,1748619118842,-420.0,0.00024383,2]
[363192369,1748619118855,-420.0,0.00024383,2]
[363192370,1748619118868,-541.52,0.00024383,2]
[363192371,1748619118884,-1399.41,0.00024383,2]
[363192372,1748619118899,-1150.73,0.00024383,2]
[363192373,1748619118913,-420.0,0.00024383,2]
[363192374,1748619118928,-2296.95,0.00024383,2]
[363192375,1748619118940,-682.72,0.00024383,2]
[363192376,1748619118953,-795.59,0.00024383,2]
[363192377,1748619118968,-575.16,0.00024383,2]
[363192378,1748619118983,-3116.89,0.00024383,2]
[363192379,1748619118997,-1061.77,0.00024383,2]
[363192380,1748619119012,-1233.85,0.00024383,2]
[363192381,1748619119027,-420.0,0.00024383,2]
[363192382,1748619119043,-11481.25,0.00024383,2]
[363192383,1748619119057,-426.85,0.00024383,2]
[363192384,1748619119071,-1096.82,0.00024383,2]
[363192385,1748619119086,-857.17,0.00024383,2]
[363192386,1748619119102,-1626.19,0.00024383,2]
[363192387,1748619119117,-420.0,0.00024383,2]
[363192388,1748619119132,-634.02,0.00024383,2]
[363192389,1748619119143,-1283.49,0.00024383,2]
[363192390,1748619119154,-1507.45,0.00024383,2]
[363192391,1748619119171,-532.67,0.00024383,2]
[363192392,1748619119183,-441.96,0.00024383,2]
[363192393,1748619119194,-3197.32,0.00024383,2]
[363192394,1748619119207,-1018.57,0.00024383,2]
[363192395,1748619119223,-1122.87,0.00024383,2]
[363192396,1748619119235,-2066.87,0.00024383,2]
[363192397,1748619119247,-489.48,0.00024383,2]
[363192398,1748619119266,-461.31,0.00024383,2]
[363192399,1748619119280,-429.62,0.00024383,2]
[363192400,1748619119296,-3670.01,0.00024383,2]
[363192401,1748619119310,-805.58,0.00024383,2]
[363192402,1748619119324,-1386.9,0.00024383,2]
[363192403,1748619119339,-894.1,0.00024383,2]
[363192404,1748619119354,-2960.24,0.00024383,2]
[363192405,1748619119368,-1963.11,0.00024383,2]
[363192406,1748619119383,-906.34,0.00024383,2]
[363192407,1748619119398,-7808.56,0.00024383,2]
[363192408,1748619119412,-1068.95,0.00024383,2]
[363192409,1748619119425,-975.57,0.00024383,2]
[363192410,1748619119439,-1446.02,0.00024383,2]
[363192411,1748619119453,-5878.54,0.00024383,2]
[363192412,1748619119466,-1309.89,0.00024383,2]
[363192413,1748619119480,-591.35,0.00024383,2]
[363192414,1748619119493,-4452.28,0.00024383,2]
[363192415,1748619119505,-8491.51,0.00024383,2]
[363192416,1748619119518,-982.46,0.00024383,2]
[363192417,1748619119531,-958.4,0.00024383,2]
[363192418,1748619119546,-139506.04,0.00024383,2]
[363192419,1748619119560,-1033.36,0.00024383,2]
[363192420,1748619119573,-1343.03,0.00024383,2]
[363192421,1748619119588,-657.44,0.00024383,2]
[363192422,1748619119601,-420.0,0.00024383,2]
[363192423,1748619119614,-453.46,0.00024383,2]
[363192424,1748619119626,-1623.73,0.00024383,2]
[363192425,1748619119639,-1032.71,0.00024383,2]
[363192426,1748619119652,-458.54,0.00024383,2]
[363192427,1748619119664,-3547.4,0.00024383,2]
[363192428,1748619119677,-982.85,0.00024383,2]
[363192429,1748619119691,-1005.97,0.00024383,2]
[363192430,1748619119705,-3804.58,0.00024383,2]
[363192431,1748619119717,-37354.79,0.00024383,2]
[363192432,1748619119730,-1623.36,0.00024383,2]
[363192433,1748619119743,-1215.02,0.00024383,2]
[363192434,1748619119757,-937.17,0.00024383,2]
[363192435,1748619119770,-753.84,0.00024383,2]
[363192436,1748619119784,-10069.56,0.00024383,2]
[363192437,1748619119799,-2424.56,0.00024383,2]
[363192438,1748619119815,-1684.99,0.00024383,2]
[363192439,1748619119828,-519.37,0.00024383,2]
[363192440,1748619119843,-7476.47,0.00024383,2]
[363192441,1748619119857,-628.41,0.00024383,2]
[363192442,1748619119870,-422.51,0.00024383,2]
[363192443,1748619119885,-868.93,0.00024383,2]
[363192444,1748619119898,-420.0,0.00024383,2]
[363192445,1748619119911,-1449.88,0.00024383,2]
[363192446,1748619119924,-14516.45,0.00024383,2]
[363192447,1748619119937,-4266.56,0.00024383,2]
[363192448,1748619119949,-830.49,0.00024383,2]
[363192449,1748619119962,-1548.49,0.00024383,2]
[363192450,1748619119975,-1978.38,0.00024383,2]
[363192451,1748619119988,-1884.76,0.00024383,2]
[363192452,1748619120000,-542.86,0.00024383,2]
[363192453,1748619120012,-593.44,0.00024383,2]
[363192454,1748619120024,-510.86,0.00024383,2]
[363192455,1748619120036,-420.0,0.00024383,2]
[363192456,1748619120048,-1709.24,0.00024383,2]
[363192457,1748619120061,-2758.03,0.00024383,2]
[363192458,1748619120073,-420.0,0.00024383,2]
[363192459,1748619120085,-29722.14,0.00024383,2]
[363192460,1748619120097,-881.72,0.00024383,2]
[363192461,1748619120109,-1169.42,0.00024383,2]
[363192462,1748619120120,-1406.27,0.00024383,2]
[363192463,1748619120133,-826.36,0.00024383,2]
[363192464,1748619120145,-1544.23,0.00024383,2]
[363192465,1748619120158,-1175.33,0.00024383,2]
[363192466,1748619120170,-3295.64,0.00024383,2]
[363192467,1748619120182,-1761.11,0.00024383,2]
[363192468,1748619120195,-660.71,0.00024383,2]
[363192469,1748619120206,-3573.53,0.00024383,2]
[363192470,1748619120217,-1034.84,0.00024383,2]
[363192471,1748619120229,-738.85,0.00024383,2]
[363192472,1748619120241,-1151.03,0.00024383,2]
[363192473,1748619120253,-9251.83,0.00024383,2]
[363192474,1748619120266,-420.0,0.00024383,2]
[363192475,1748619120279,-772.03,0.00024383,2]
[363192476,1748619120293,-490.63,0.00024383,2]
[363192477,1748619120305,-720.83,0.00024383,2]
[363192478,1748619120317,-1360.32,0.00024383,2]
[363192479,1748619120329,-723.88,0.00024383,2]
[363192480,1748619120341,-567.24,0.00024383,2]
[363192481,1748619120354,-2486.32,0.00024383,2]
[363192482,1748619120367,-4470.51,0.00024383,2]
[363192483,1748619120379,-1446.13,0.00024383,2]
[363192484,1748619120391,-2304.2,0.00024383,2]
[363192485,1748619120403,-1389.12,0.00024383,2]
[363192486,1748619120416,-1054.71,0.00024383,2]
[363192487,1748619120428,-990.01,0.00024383,2]
[363192488,1748619120440,-1680.37,0.00024383,2]
[363192489,1748619120452,-521.76,0.00024383,2]
[363192490,1748619120465,-4095.54,0.00024383,2]
[363192491,1748619120476,-1486.66,0.00024383,2]
[363192492,1748619120489,-1336.51,0.00024383,2]
[363192493,1748619120501,-1487.37,0.00024383,2]
[363192494,1748619120513,-2771.35,0.00024383,2]
[363192495,1748619120525,-4189.49,0.00024383,2]
[363192496,1748619120539,-629.45,0.00024383,2]
[363192497,1748619120551,-2997.14,0.00024383,2]
[363192498,1748619120563,-1125.7,0.00024383,2]
[363192499,1748619120576,-614.16,0.00024383,2]
[363192500,1748619120588,-1026.77,0.00024383,2]
[363192501,1748619120599,-7561.37,0.00024383,2]
[363192502,1748619120611,-420.0,0.00024383,2]
[363192503,1748619120624,-1258.89,0.00024383,2]
[363192504,1748619120635,-1075.29,0.00024383,2]
[363192505,1748619120647,-760.57,0.00024383,2]
[363192506,1748619120660,-3180.63,0.00024383,2]
[363192507,1748619120672,-1927.78,0.00024383,2]
[363192508,1748619120684,-1656.75,0.00024383,2]
[363192509,1748619120696,-420.0,0.00024383,2]
[363192510,1748619120708,-641.68,0.00024383,2]
[363192511,1748619120720,-1318.91,0.00024383,2]
[363192512,1748619120732,-1139.98,0.00024383,2]
[363192513,1748619120743,-798.56,0.00024383,2]
[363192514,1748619120755,-1082.24,0.00024383,2]
[363192515,1748619120767,-718.05,0.00024383,2]
[363192516,1748619120779,-1074.24,0.00024383,2]
[363192517,1748619120792,-3419.97,0.00024383,2]
[363192518,1748619120807,-1239.27,0.00024383,2]
[363192519,1748619120819,-671.13,0.00024383,2]
[363192520,1748619120831,-1848.95,0.00024383,2]
[363192521,1748619120842,-2486.27,0.00024383,2]
[363192522,1748619120855,-420.0,0.00024383,2]
[363192523,1748619120867,-316.99,0.00024383,2]
[363192524,1748619120879,-1822.33,0.00024383,2]
[363192525,1748619120891,-4083.38,0.00024383,2]
[363192526,1748619120903,-1501.86,0.00024383,2]
[363192527,1748619120914,-4025.56,0.00024383,2]
[363192528,1748619120927,-1358.16,0.00024383,2]
[363192529,1748619120938,-4868.11,0.00024383,2]
[363192530,1748619120950,-2713.7,0.00024383,2]